{"text_format":"1","workbook":"xlsx","n_sheets":2,"sheets":["TESTING SHEET","SPREADSHEET HISTORY"],"not_rendered":{"charts":0,"images":6,"macros":1,"external_links":0,"defined_names":24,"comments":1,"pivot_tables":0},"unopened":[],"bounds":{"document_bytes":16777216,"sheet_cells":100000,"rows_first":2000,"rows_last":500,"rows_between":2000,"halvings":0,"cell_chars":16384,"cell_head_chars":4096},"cells_cut":0,"cells_raw":0,"read":"whole","date_system":"1900"}

{"sheet":"TESTING SHEET","index":0,"n_rows":40,"n_cols":20,"rows_kept":40,"cut":false,"hidden":false,"merged":[[4,9,4,10],[12,12,12,13],[4,11,4,12],[5,11,5,12],[6,11,6,12],[7,11,7,12],[7,9,7,10],[8,9,8,10],[10,7,10,10],[10,12,10,13],[38,3,38,4],[38,0,38,2],[7,7,7,8],[8,7,8,8],[30,7,30,8],[32,7,32,8],[31,7,31,8],[33,0,33,5],[36,0,36,5],[31,1,31,2],[27,12,27,14],[78,12,78,22],[72,12,72,22],[73,12,73,22],[74,12,74,22],[75,12,75,22],[77,12,77,22],[76,12,76,22],[39,12,39,16],[33,18,33,19],[16,18,16,19],[37,7,37,9],[33,9,33,10],[32,9,32,10],[31,9,31,10],[24,9,24,10],[22,9,22,10],[21,7,21,8],[36,15,36,16],[36,19,36,20],[37,19,37,20],[36,12,36,14],[35,15,35,16],[34,15,34,16],[34,12,34,14],[35,19,35,20],[34,19,34,20],[39,7,39,9],[31,4,31,5],[34,3,34,4],[6,7,6,8],[39,0,39,5],[36,7,36,10],[18,3,18,4],[19,3,19,4],[20,3,20,4],[22,3,22,4],[38,7,38,9],[35,12,35,14],[31,12,31,14],[34,7,34,8],[34,9,34,10],[33,7,33,8],[22,0,22,1],[21,0,21,1],[21,3,21,4],[0,3,0,14],[1,3,1,14],[3,7,3,16],[4,7,4,8],[5,7,5,8],[5,9,5,10],[6,9,6,10],[37,0,37,5],[34,0,34,1],[23,0,23,1],[28,0,28,5],[25,3,25,4],[30,4,30,5],[30,1,30,2],[24,0,24,1],[26,3,26,5],[29,1,29,2],[18,12,18,13],[8,13,8,14],[2,15,2,16],[2,13,2,14],[16,12,16,13],[17,12,17,13],[7,13,7,14],[4,13,4,14],[5,13,5,14],[10,14,10,15],[23,14,23,15],[25,15,25,16],[8,11,8,12],[0,15,0,16],[24,15,24,16],[14,12,14,13],[22,12,22,16],[1,15,1,16],[2,5,2,11],[6,13,6,14],[0,0,0,2],[1,0,1,2],[16,7,16,8],[18,7,18,10],[12,7,12,8],[14,7,14,8],[13,7,13,8],[14,9,14,10],[15,0,15,1],[11,9,11,10],[21,9,21,10],[22,7,22,8],[24,12,24,14],[15,9,15,10],[15,12,15,13],[20,9,20,10],[19,7,19,8],[19,9,19,10],[16,9,16,10],[15,7,15,8],[17,3,17,4],[14,0,14,1],[12,0,12,1],[12,9,12,10],[13,9,13,10],[11,7,11,8],[13,0,13,1],[13,3,13,4],[12,3,12,4],[11,0,11,1],[9,0,9,1],[20,0,20,1],[20,7,20,8],[14,3,14,4],[15,3,15,4],[18,0,18,1],[16,0,16,1],[17,0,17,1],[19,0,19,1],[16,3,16,4],[6,0,6,1],[6,3,6,4],[7,3,7,4],[7,0,7,1],[8,0,8,1],[11,3,11,4],[10,0,10,1],[8,3,8,4],[9,3,9,4],[10,3,10,4],[2,1,2,4],[26,0,26,1],[25,0,25,1],[24,3,24,4],[23,3,23,4],[3,0,3,5],[4,3,4,4],[5,3,5,4],[5,1,5,2],[4,1,4,2],[23,9,23,10],[29,9,29,10],[28,9,28,10],[27,7,27,8],[28,7,28,8],[23,7,23,8],[27,9,27,10],[24,7,24,8],[26,7,26,10],[29,7,29,8],[13,12,13,13],[19,12,19,15],[20,12,20,15],[28,15,28,16],[26,15,26,16],[29,15,29,16],[25,12,25,14],[26,12,26,14],[29,12,29,14],[28,12,28,14],[29,4,29,5],[33,15,33,16],[33,12,33,14],[32,12,32,14],[31,15,31,16],[30,15,30,16],[30,12,30,14],[30,9,30,10]]}
["S.P. #",null,null,"Minnesota Department Of Transportation",null,null,null,null,null,null,null,null,null,null,null,"Contractor:",null,null,"SPNW"]
[null,null,null,"Contractor Bituminous Testing Sheet",null,null,null,null,null,null,null,null,null,null,null,null,null,null,"SPWE"]
[null,"Version Date 5/23/2008",null,null,null," \"Protected Design\" 2004 Mn/Dot District 2",null,null,null,null,null,null,"Validation","INCOMPLETE",null,{"$f":"NOW()","v":"2018-05-25T12:48:31.770"},null,null,"LVNW"]
["Gradation",null,null,null,null,null,null,"Test Information",null,null,null,null,null,null,null,null,null,null,"LVWE"]
["Before Wash (g)",null,null,"After Wash (g)",null,null,null,"MDR #",null,null,null,"Sample Tonnage",null,null,null,"Ps",{"$f":"IF(ISERROR(100-AsphaltContent=100),\"\",(mndot_rounding_1(100-AsphaltContent)))","v":""},null,"MVNW"]
["Pan",null,null,"Loss in Wash (g)",null,{"$f":"B5-F5","v":0},null,"Field ID #",null,null,null,"Sample Station",null,null,null,"Gse",{"$f":"IF(ISERROR((Ps)/((100/Gmm)-(AsphaltContent/AsphaltGb))),\"\",mndot_rounding_3(((Ps)/((100/Gmm)-(AsphaltContent/AsphaltGb)))))","v":""},null,"MVWE"]
["Sieve",null,"Individual Weight","Cum. Weight (g)",null,"% Passing",null,"Mix Type",null,null,null,"Date Sampled",null,null,null,"(-#4)Gsb"]
["1\"",null,null,{"$f":"D9+C8","v":0},null,{"$f":"IF(ISBLANK(C8),\"\",IF(ISERROR(D9/C27),\"\",mndot_rounding_2(D9/C27)))","v":""},null,"Aggregate Size",null,null,null,"Date Tested",null,null,null," (Mix)Gsb"]
["3/4\"",null,null,0,null,{"$f":"IF(ISBLANK(C9),\"\",IF(ISERROR(D10/C27),\"\",mndot_rounding_2(D10/C27)))","v":""},null,"PG",null,null,null,"Design % AC",null,null,null,"(Asphalt)Gb"]
["5/8\"",null,null,{"$f":"D11+C10","v":0},null,{"$f":"IF(ISBLANK(C10),\"\",IF(ISERROR(D11/C27),\"\",mndot_rounding_2(D11/C27)))","v":""},null,null,null,null,null,null,null,null,null,null,null,null,"QA Verification"]
["1/2\"",null,null,0,null,{"$f":"IF(ISBLANK(C11),\"\",IF(ISERROR(D12/C27),\"\",mndot_rounding_2(D12/C27)))","v":""},null,"Rice Test",null,null,null,null,"Gyratory",null,"Bulk Specific Gravity",null,null,null,"QC Test"]
["3/8\"",null,null,0,null,{"$f":"IF(ISBLANK(C12),\"\",IF(ISERROR(D13/C27),\"\",mndot_rounding_2(D13/C27)))","v":""},null,"Sample Weight (g)                                                            [A]",null,null,null,null,"Gyrations or Blows",null,"PUCK                                            A","PUCK                                                       B",null,null,"N/A"]
["#4",null,null,0,null,{"$f":"IF(ISBLANK(C13),\"\",IF(ISERROR(D14/C27),\"\",mndot_rounding_2(D14/C27)))","v":""},null,"Sample+Container                                                           in H2O (g)                                                 [B]",null,null,null,null,"Puck Heights"]
["#6",null,null,0,null,{"$f":"IF(ISBLANK(C14),\"\",IF(ISERROR(D15/C27),\"\",mndot_rounding_2(D15/C27)))","v":""},null,"Container in H20 (g)                                                              [C]",null,null,null,null,"Air Dry Weight (g)                                                               [A]"]
["#8",null,null,0,null,{"$f":"IF(ISBLANK(C15),\"\",IF(ISERROR(D16/C27),\"\",mndot_rounding_2(D16/C27)))","v":""},null,"Sample in H20 (g)                                                                 B-C=[D] ",null,{"$f":"IF(ISBLANK(J12),\"\",(J13-J14))","v":""},null,null,"SSD Weight (g)                                                                   [B]"]
["#10",null,null,0,null,{"$f":"IF(ISBLANK(C16),\"\",IF(ISERROR(D17/C27),\"\",mndot_rounding_2(D17/C27)))","v":""},null,"Volume (g)                                                                    A-D=[E] ",null,{"$f":"IF(ISBLANK(J12),\"\",(J12-J15))","v":""},null,null,"Immersed Weight (g)                                                     [C]"]
["#16",null,null,0,null,{"$f":"IF(ISBLANK(C17),\"\",IF(ISERROR(D18/C27),\"\",mndot_rounding_2(D18/C27)))","v":""},null,"Max. Specific Gravity (Gmm)                                                                A/E=[F]",null,{"$f":"IF(ISERROR(J12/J16),\"\",mndot_rounding_3(J12/J16))","v":""},null,null,"Volume                                                                   B-C=[D]",null,{"$f":"IF(ISBLANK(O15),\"\",(O15-O16))","v":""},{"$f":"IF(ISBLANK(P15),\"\",(P15-P16))","v":""},{"$f":"IF(ISBLANK(Q15),\"\",(Q15-Q16))","v":""},null,"Bulk Specific Gravity"]
["#20",null,null,0,null,{"$f":"IF(ISBLANK(C18),\"\",IF(ISERROR(D19/C27),\"\",mndot_rounding_2(D19/C27)))","v":""},null,null,null,null,null,null,"Bulk Specific Gravity                                                                A/D=[E]",null,{"$f":"IF(ISERROR(O14/O17),\"\",mndot_rounding_3(O14/O17))","v":""},{"$f":"IF(ISERROR(P14/P17),\"\",mndot_rounding_3(P14/P17))","v":""},{"$f":"IF(ISERROR(Q14/Q17),\"\",mndot_rounding_3(Q14/Q17))","v":""},null,{"$f":"IF(ISERROR((O18+P18)/2),\"\",mndot_rounding_3((O18+P18)/2))","v":""},"Gyratory"]
["#30",null,null,0,null,{"$f":"IF(ISBLANK(C19),\"\",IF(ISERROR(D20/C27),\"\",mndot_rounding_2(D20/C27)))","v":""},null,"% Moisture",null,null,null,null,"Average Bulk (Gmb)",null,{"$f":"IF((Q17=\"\"),(S18),(S19))","v":""},"Density                   lbs./cu.ft.",{"$f":"IF(ISERROR(Gmbaverage*62.3),\"\",mndot_rounding_3(Gmbaverage*62.3))","v":""},null,{"$f":"IF(ISERROR((O18+P18+Q18)/3),\"\",mndot_rounding_3((O18+P18+Q18)/3))","v":""},"Marshall"]
["#40",null,null,0,null,{"$f":"IF(ISBLANK(C20),\"\",IF(ISERROR(D21/C27),\"\",mndot_rounding_2(D21/C27)))","v":""},null,"Mix + Pan Wet (g)                                                 [A]               ",null,null,null,null,"% Air Voids                                                                          100*((Gmm-Gmb)/Gmm)",null,null,null,{"$f":"IF(ISERROR(100*((Gmm-Gmbaverage)/Gmm)),\"\",mndot_rounding_1(100*((Gmm-Gmbaverage)/Gmm)))","v":""}]
["#50",null,null,0,null,{"$f":"IF(ISBLANK(C21),\"\",IF(ISERROR(D22/C27),\"\",mndot_rounding_2(D22/C27)))","v":""},null,"Mix + Pan Dry (g)                                               [B]             ",null,null,null,null,"VMA                                                                                       100-((Gmb*Ps)/Gsb)",null,null,null,{"$f":"IF(ISERROR(100-((Gmbaverage*Ps)/MixGsb)),\"\",mndot_rounding_1(100-((Gmbaverage*Ps)/MixGsb)))","v":""}]
["#60",null,null,0,null,{"$f":"IF(ISBLANK(C22),\"\",IF(ISERROR(D23/C27),\"\",mndot_rounding_2(D23/C27)))","v":""},null,"Pan (g)                                                                      [C]"]
["#80",null,null,0,null,{"$f":"IF(ISBLANK(C23),\"\",IF(ISERROR(D24/C27),\"\",mndot_rounding_2(D24/C27)))","v":""},null,"Water Loss (g)                                  A-B=[D]    ",null,{"$f":"IF(ISBLANK(J20),\"\",(J20-J21))","v":""},null,null,"% AC Burn Method"]
["#100",null,null,0,null,{"$f":"IF(ISBLANK(C24),\"\",IF(ISERROR(D25/C27),\"\",mndot_rounding_2(D25/C27)))","v":""},null,"Dry Mix (g)                                               B-C=[E]           ",null,{"$f":"IF(ISBLANK(J20),\"\",(J21-J22))","v":""},null,null,"Basket I.D.",null,"Calibration Factor"]
["#200",null,null,{"$f":"D26+C25","v":0},null,{"$f":"IF(ISBLANK(C25),\"\",IF(ISERROR(D26/C27),\"\",mndot_rounding_3(D26/C27)))","v":""},null,"% Moisture                                                   [100*(D/E)]",null,{"$f":"IF(J24=\"\",\"\",mndot_rounding_3((J23/J24)))","v":""},null,null,"Basket Weight (g)                                                                                           [A]"]
["Bottom",null,null,{"$f":"F6+C26","v":0},null,{"$f":"IF((ABS(C27-B5))<(ABS(B5*0.003)),\"YES\",\"NO\")","v":"NO"},null,null,null,null,null,null,"Weight of Bituminous Sample Only (g)                                                                              [B]"]
["Total",null,{"$f":"SUM(C8:C26)+F6","v":0},"Is Total Weight (+/- 0.3%) of Before Wash Weight?",null,null,null,"FAA",null,null,null,null,"Initial Basket + Sample Weight (g)                                                            [C]                                 ",null,null,{"$f":"IF(ISBLANK(P25),\"\",mndot_rounding_1(P25+P26))","v":""}]
[null,null,null,null,null,null,null,"Fine Specific Gravity ",null,{"$f":"IF(ISBLANK(minus4Gsb),\"\",(minus4Gsb))","v":""},null,null,"Corrected Initial Sample Weight (g)                                                           B-(Moisture)=[D]           ",null,null,{"$f":"IF(ISERROR((P26/(J20-J22))*J23),\"\",mndot_rounding_0(P26/(J20-J22))*J23)","v":""},{"$f":"IF(ISERROR(P27-P25-MoistureCorrection),\"\",mndot_rounding_1(P27-P25-MoistureCorrection))","v":""}]
["CAA - % Crushing",null,null,null,null,null,null,"Volume of Cylinder",null,null,null,null,"Final Weight Basket + Sample (g)                                                          [E]                     "]
["1 Faced          (g)",null,null,"Total (g)",{"$f":"IF(ISBLANK(B30),\"\",(B31+B30+B32))","v":""},null,null,"Tare Weight of Cylinder",null,null,null,null,"Final Sample Weight (g)                                                                        E-A=[F]                            ",null,null,{"$f":"IF(ISBLANK(P25),\"\",mndot_rounding_1(P29-P25))","v":""}]
["2 Faced        (g)",null,null,"%1 Face",{"$f":"IF(ISERROR((B31+B30)/E30),\"\",mndot_rounding_2((B31+B30)/E30))","v":""},null,null,"Weight Trial 1 (g)",null,null,null,null,"F/100=[G]",null,null,{"$f":"IF(ISBLANK(Q24),\"\",(Q24/100))","v":""},null,null,"FAA Tolerance"]
["Uncrushed          (g)",null,null,"%2 Face",{"$f":"IF(ISERROR(B31/E30),\"\",mndot_rounding_2(B31/E30))","v":""},null,null,"Weight Trial 2 (g)",null,null,null,null,"Moisture Corrected %AC                                                                   [(1-(F/D))-G]/(1-G)",null,null,{"$f":"IF(ISERROR(100*(1-(P30/InitialWeightCorrected)-P31)/(1-P31)),\"\",IF(J20=\"\",\"\",IF(J21=\"\",\"\",mndot_rounding_1(100*(1-(P30/InitialWeightCorrected)-P31)/(1-P31)))))","v":""},null,null,{"$f":"IF(ISERROR(ABS($J$33-$J$34)),0,(ABS($J$33-$J$34)))","v":0}]
[null,null,null,null,null,null,null,"Trial 1 (%)",null,{"$f":"IF(ISERROR((J29-(J31-J30)/J28)/J29),\"\",mndot_rounding_3(((J29-(J31-J30)/J28)/J29)))","v":""}]
["Asphalt Film Thickness AFT",null,null,null,null,null,null,"Trial 2 (%)",null,{"$f":"IF(ISERROR((J29-(J32-J30)/J28)/J29),\"\",mndot_rounding_3(((J29-(J32-J30)/J28)/J29)))","v":""},null,null,"Project Engineer / Supervisor:",null,null,null,null,null,"Calculations for AFT"]
["Surface Area",null,{"$f":"IF(ISERROR(ASA),\"\",(ASA))","v":""},"Microns",null,{"$f":"IF(ISERROR(AdjustedAFT),\"\",(AdjustedAFT))","v":""},null,"Average (%)",null,{"$f":"IF(ISERROR(AVERAGE(J33:J34)),\"\",mndot_rounding_2(AVERAGE(J33:J34)))","v":""},null,null,"Agency Plant Inspector:",null,null,null,null,null,{"$f":"mndot_rounding_1(2+((0.02)*(F13*100))+((0.04)*(F15*100))+((0.08)*(F17*100))+((0.14)*(F19*100))+((0.3)*(F21*100))+((0.6)*(F24*100))+((1.6)*(F25*100)))","v":{"$error":"#VALUE!"}},"(SA) Not Adjusted Surface Area"]
[null,null,null,null,null,null,null,null,null,null,null,null,"QC Test Or QA Verification",null,null,1,null,null,{"$f":"IF(minus4Gsb<2.58,mndot_rounding_1(S35*2.65/minus4Gsb),(IF(minus4Gsb>2.7,mndot_rounding_1(S35*2.65/minus4Gsb),S35)))","v":{"$error":"#VALUE!"}},"(ASA) Adjusted Surface Area"]
["Comments",null,null,null,null,null,null,"Additional Calculation",null,null,null,null,"Contractor Technician/Tester:",null,null,null,null,null,{"$f":"mndot_rounding_1(Pbe/(Ps*ASA)*4870)","v":{"$error":"#VALUE!"}},"Non Adjusted AFT Calculation"]
[{"$f":"IF((P30=B5),\"\",(\"Final Burn Weight Is Not Equal To Before Wash Weight\"))","v":""},null,null,null,null,null,null,"Pba                                                                                                           100*((Gse-MixGsb)/(MixGsb*Gse))*Gb",null,null,{"$f":"IF(ISERROR(100*((Gse-MixGsb)/(MixGsb*Gse))*AsphaltGb),\"\",(100*((Gse-MixGsb)/(MixGsb*Gse))*AsphaltGb))","v":""},null,null,null,null,null,null,null,{"$f":"mndot_rounding_1(S37+0.06*(ASA-28))","v":{"$error":"#VALUE!"}},"Adjusted AFT Calculation"]
[null,null,null,"INFO. ONLY A/C",null,{"$f":"IF(ISERROR(100*(1-(P30/InitialWeightCorrected)-P31)/(1-P31)),\"\",IF(J20=\"\",\"\",IF(J21=\"\",\"\",mndot_rounding_3(100*(1-(P30/InitialWeightCorrected)-P31)/(1-P31)))))","v":""},null,"Pbe                                                                                                                                                                Pb-((Pba*Ps)/100)",null,null,{"$f":"IF(ISERROR(AsphaltContent-((Pba*Ps)/100)),\"\",mndot_rounding_1(AsphaltContent-((Pba*Ps)/100)))","v":""}]
[null,null,null,null,null,null,null,"Dust to Asphalt Proportion                                                         (minus200/Pbe)",null,null,{"$f":"IF(ISERROR(100*(minus200/Pbe)),\"\",mndot_rounding_1(100*(minus200/Pbe)))","v":""},null,"Contractor Bituminous Testing Spreadsheet provided by Mn/Dot D2"]

{"sheet":"SPREADSHEET HISTORY","index":1,"n_rows":32,"n_cols":3,"rows_kept":32,"cut":false,"hidden":false,"merged":[[17,0,17,12],[15,2,15,12],[26,2,26,12],[18,0,18,12],[23,2,23,12],[24,2,24,12],[9,0,9,12],[1,0,1,12],[2,2,2,12],[3,2,3,12],[4,2,4,12],[16,0,16,12],[28,2,28,12],[5,2,5,12],[6,2,6,12],[7,2,7,12],[14,2,14,12],[12,2,12,12],[13,0,13,12],[10,2,10,12],[11,2,11,12],[8,0,8,12],[30,0,30,12],[31,2,31,12],[0,0,0,12],[29,2,29,12],[19,2,19,12],[20,2,20,12],[25,2,25,12],[27,2,27,12],[21,2,21,12],[22,2,22,12]]}
["Spreadsheet History"]
["April 2003"]
[null,"*","Original Release of Bituminous Testing Spreadsheet by District 2A Construction in Bemidji."]
[null,"*","Joel Melvie Bemidji Construction - TRF Construction as of October 2004."]
[null,"*","Todd Vonasek Res. Engineer Bemidji Construction"]
[null,"*","The Bituminous Testing Spreadsheet was created to promote consistency and uniformity in Bituminous Testing Documentation on Projects"]
[null,"*","The Spreadsheet was written to follow procedures consistent with MN/DOT and AASHTO."]
[null,"*","It is the intention for use that the contractor print off a blank copy of the spreadsheet and record raw data in the appropriate boxes.  To complete the process, this data would be transferred to the spreadsheet where calculations are made and test reports can be printed, as well as saved electronically.  It has been found that costly errors have been reduced by using this method, as it allows contractors to keep a clean chain of documentation to review, as well as improve MN/Dot inspectors ability to review documentation in a timely manor and communicate findings with contractors."]
["April 2004"]
["Additional Programming added to the Contractor's Bituminous Testing Spreadsheet as follows"]
[null,"*","Addition of Command Key to \"Validate\" that required information has been entered into the spreadsheet"]
[null,"*","Addition of calculations for AFT pilot spec. (Informational only at this time.)"]
[null,"*","\"Protected Design\" language added to discourage modification to the testing spreadsheet.  This spreadsheet was created to promote consistency and uniformity in documentation which is beneficial to contractors and MN/Dot alike.  Modifications are not authorized by the original designers and the spreadsheet may not be accepted as \"approved software or forms\",  if modifications are made. "]
["April 2006"]
[null,"*","Adjustments made to AFT calculations as specification changes to make corrections."]
[null,"*","Bituminous Office posted spreadsheet on website"]
["May 2008"]
["Version 5/13/2008"]
["Specification Change in 2008 Required Reprogramming of Spreadsheet, Specifically Bulk Specific Gravity Area"]
[null,"*","Bituminous specification changes to Gyratory calculations allowed for Gyratory sheet to be removed."]
[null,"*","New procedure to calculate Bulk Specific Gravities at Design Gyrations reformatted layout of that area of spreadsheet."]
[null,"*","Increase size of cells in Bulk Specific Gravity Area.  Made it necessary to change some format layouts."]
[null,"*","Additional calculations block added to front of testing spreadsheet that were once located on the gyratory sheet."]
[null,"*","Correction made to AFT calculation to correct programming error."]
[null,"*","Made minor format layout changes to Gradation area."]
[null,"*","AFT format layout will appear different."]
[null,"*","Formulas used for calculations have been \"cleaned\" by utilizing cell \"naming\" to improve formula readability."]
[null,"*","FAA Trials have been changed to display and round to 0.1%, (Final FAA remains whole number)."]
[null,"*","Tolerance check of 0.5% has been added between FAA Trials. "]
[null,"*","Added Comment boxes to Bulk Specific Gravity Section to serve as reminders for Puck Heights.   Gyratory 115mm (+/-) 5.0mm ; Marshall 2.50in. (+/-) .125in."]
["Version 5/23/2008"]
[null,"*","Calculation error in Asphalt Content corrected (error was found in moisture correction)."]